bitfinex-derivatives/quotes_BTCF0:USTF0_20240830
["timestamp","ask_amount","ask_price","bid_price","bid_amount"]
[1724996215936,0.1514705,58884.0,58883.0,0.374909]
[1724996216136,0.1514705,58884.0,58883.0,0.884389]
[1724996216333,0.04157572,58884.0,58883.0,1.484389]
[1724996216534,0.04157572,58884.0,58883.0,1.696789]
[1724996217043,0.04157572,58884.0,58883.0,1.697789]
[1724996217247,0.04157572,58884.0,58883.0,1.698789]
[1724996217434,0.00279652,58884.0,58883.0,1.698789]
[1724996217633,0.11334988,58886.0,58885.0,0.084907]
[1724996217844,0.11334988,58887.0,58885.0,0.3608]
[1724996218137,0.11334988,58887.0,58883.0,0.5044]
[1724996218138,0.1514705,58895.0,58894.0,0.084894]
[1724996218337,0.1514705,58898.0,58897.0,0.084889]
[1724996218529,0.1514705,58900.0,58898.0,0.084886]
[1724996218734,0.1514705,58900.0,58899.0,0.29]
[1724996218934,0.1514705,58901.0,58900.0,0.084885]
[1724996219133,0.20349366,58902.0,58900.0,0.29]
[1724996219333,0.22054079,58905.0,58903.0,0.08488]
[1724996219534,0.16843822,58906.0,58904.0,0.6508]
[1724996219742,0.16843822,58908.0,58905.0,0.084877]
[1724996220040,0.05210223,58907.0,58905.0,0.084877]
[1724996220243,0.05210223,58906.0,58905.0,0.084877]
[1724996220433,0.05210223,58906.0,58905.0,0.233717]
[1724996221034,0.05210223,58906.0,58905.0,0.234717]
[1724996221241,0.05210223,58906.0,58905.0,0.235717]
[1724996223339,0.05210223,58906.0,58905.0,0.24911349]
[1724996223841,0.05210223,58906.0,58905.0,0.16423649]
[1724996224033,0.05210223,58906.0,58905.0,0.01539649]
[1724996224233,0.2572,58910.0,58905.0,0.16419649]
[1724996224537,0.17986621,58906.0,58905.0,0.002]
[1724996224741,0.23196696,58906.0,58905.0,0.1508]
[1724996224937,0.05210075,58906.0,58905.0,0.1508]
[1724996225333,0.23196696,58906.0,58905.0,0.1508]
[1724996225742,0.27353627,58906.0,58905.0,0.1508]
[1724996226249,0.27353627,58906.0,58905.0,0.001]
[1724996226434,0.27353627,58906.0,58905.0,0.002]
[1724996227242,0.27353627,58906.0,58905.0,0.001]
[1724996227443,0.27353627,58906.0,58905.0,0.002]
[1724996229046,0.27353925,58906.0,58905.0,0.002]
[1724996229242,0.09367304,58906.0,58905.0,0.002]
[1724996229438,0.20945816,58906.0,58905.0,0.002]
[1724996229641,0.20945816,58906.0,58905.0,0.085878]
[1724996229642,0.04156905,58906.0,58905.0,0.085878]
[1724996229844,0.04156905,58906.0,58905.0,0.086878]
[1724996230143,0.04156905,58906.0,58905.0,0.09925271]
[1724996230348,0.16788911,58906.0,58905.0,0.10025271]
[1724996230543,0.04156905,58906.0,58905.0,0.10025271]
[1724996231844,0.16788911,58906.0,58905.0,0.10025271]
[1724996232044,0.20945816,58906.0,58905.0,0.10025271]
[1724996232743,0.20945816,58906.0,58905.0,0.09925271]
[1724996232940,0.20945816,58906.0,58905.0,0.10025271]
[1724996233555,0.04156905,58906.0,58905.0,0.10025271]
[1724996233739,0.16795444,58906.0,58905.0,0.10025271]
[1724996233944,0.2095225,58906.0,58905.0,0.10025271]
[1724996234144,0.04156806,58906.0,58905.0,0.10025271]
[1724996234346,0.04156806,58908.0,58905.0,0.24905271]
[1724996234547,0.22622764,58907.0,58905.0,0.24905271]
[1724996234746,0.04156806,58906.0,58905.0,0.24905271]
[1724996236050,0.04156806,58906.0,58905.0,0.24805271]
[1724996236246,0.04156806,58906.0,58905.0,0.24905271]
[1724996236844,0.04156806,58906.0,58905.0,0.24805271]
[1724996237060,0.04156806,58906.0,58905.0,0.24905271]
[1724996237351,0.22622764,58906.0,58905.0,0.16417471]
[1724996237553,0.50528246,58906.0,58905.0,0.002]
[1724996237758,0.37272563,58906.0,58905.0,0.002]
[1724996238366,0.73352563,58906.0,58905.0,0.002]
[1724996238662,0.7335315,58906.0,58905.0,0.002]
[1724996240053,1.0235315,58906.0,58905.0,0.002]
[1724996242052,1.02353759,58906.0,58905.0,0.002]
[1724996242256,0.79441904,58906.0,58905.0,0.002]
[1724996242959,0.34874304,58906.0,58905.0,0.086878]
[1724996243260,0.09368277,58906.0,58905.0,0.086878]
[1724996243646,0.09367116,58906.0,58905.0,0.086878]
[1724996244254,0.15455261,58906.0,58905.0,0.086878]
[1724996244456,0.15455261,58906.0,58905.0,0.10048104]
[1724996244856,0.09367116,58906.0,58905.0,0.10048104]
[1724996245664,0.15455261,58906.0,58905.0,0.10048104]
[1724996245849,0.09367116,58906.0,58905.0,0.10048104]
[1724996246459,0.15455261,58906.0,58905.0,0.10048104]
[1724996248463,0.15454702,58906.0,58905.0,0.10048104]
[1724996250268,0.22711466,58906.0,58905.0,0.10048104]
[1724996252068,0.04156574,58906.0,58905.0,0.10048104]
[1724996253559,0.19337504,58906.0,58905.0,0.10048104]
[1724996253968,0.04156574,58906.0,58905.0,0.10048104]
[1724996254163,0.21023567,58906.0,58905.0,0.01560304]
[1724996254367,0.66628556,58906.0,58905.0,0.002]
[1724996254566,0.71838539,58906.0,58905.0,0.002]
[1724996255277,0.5431129,58906.0,58905.0,0.002]
[1724996256671,0.35758539,58906.0,58905.0,0.002]
[1724996258972,0.27270939,58906.0,58905.0,0.002]
[1724996260579,0.09366557,58906.0,58905.0,0.002]
[1724996260973,0.09366557,58906.0,58905.0,0.086878]
[1724996261175,0.09366557,58906.0,58905.0,0.205078]
[1724996262572,0.09366557,58906.0,58905.0,0.21873914]
[1724996264276,0.04156574,58906.0,58905.0,0.21873914]
[1724996264472,0.1686567,58906.0,58905.0,0.21873914]
[1724996264776,0.18552079,58911.0,58906.0,0.084875]
[1724996264974,0.22708539,58910.0,58908.0,0.3608]
[1724996265166,0.0415646,58909.0,58908.0,0.735673]
[1724996266674,0.0415646,58909.0,58908.0,0.3618]
[1724996266881,0.0415646,58909.0,58908.0,0.51148]
[1724996267271,0.0415646,58909.0,58908.0,0.51348]
[1724996268080,0.0415646,58909.0,58908.0,0.51248]
[1724996269782,0.0415646,58909.0,58908.0,0.3618]
[1724996269975,0.0415646,58909.0,58908.0,0.3608]
[1724996270185,0.22702727,58909.0,58908.0,0.3608]
[1724996270674,0.41420008,58909.0,58908.0,0.3608]
[1724996270883,0.49907208,58909.0,58908.0,0.3608]
[1724996271077,0.36570924,58909.0,58908.0,0.3618]
[1724996271680,0.55117191,58909.0,58908.0,0.3628]
[1724996272382,0.3657141,58909.0,58908.0,0.3628]
[1724996273779,0.17854129,58909.0,58908.0,0.3628]
[1724996273979,0.30438777,58909.0,58908.0,0.3628]
[1724996274186,0.35648967,58909.0,58908.0,0.3628]
[1724996274989,0.35648967,58909.0,58908.0,0.002]
[1724996276287,0.35648979,58909.0,58908.0,0.002]
[1724996278381,0.48994421,58909.0,58908.0,0.002]
[1724996278682,0.54204618,58909.0,58908.0,0.002]
[1724996278879,0.35648979,58909.0,58908.0,0.002]
[1724996280184,0.35648979,58909.0,58908.0,0.086873]
[1724996280185,0.27161779,58909.0,58908.0,0.086873]
[1724996280491,0.21951582,58909.0,58908.0,0.086873]
[1724996280685,0.04156744,58909.0,58908.0,0.086873]
[1724996280889,0.09366941,58909.0,58908.0,0.086873]
[1724996281080,0.09366898,58909.0,58908.0,0.086873]
[1724996287389,0.04156725,58909.0,58908.0,0.085873]
[1724996287593,0.04156725,58909.0,58908.0,0.088873]
[1724996288184,0.04156725,58909.0,58908.0,0.084873]
[1724996289395,0.22722635,58909.0,58908.0,0.084873]
[1724996289598,0.04156725,58909.0,58908.0,0.084873]
[1724996290284,0.1856591,58910.0,58909.0,0.084872]
[1724996290494,0.04156348,58910.0,58909.0,0.084872]
[1724996291989,0.04156348,58910.0,58909.0,0.204872]
[1724996292384,0.04156348,58910.0,58909.0,0.206872]
[1724996293998,0.21032906,58910.0,58909.0,0.207872]
[1724996294196,0.23775693,58916.0,58909.0,1.317112]
[1724996294395,0.0885716,58921.0,58915.0,0.7216]
[1724996294593,0.004,58929.0,58920.0,0.4808]
[1724996294794,0.19027152,58926.0,58920.0,0.3608]
[1724996294995,0.15451254,58925.0,58920.0,0.3608]
[1724996295302,0.09364218,58924.0,58920.0,0.3608]
[1724996295592,0.09364218,58923.0,58920.0,0.3608]
[1724996295787,0.09364218,58922.0,58921.0,0.084855]
[1724996295984,0.09364218,58922.0,58921.0,0.374855]
[1724996297502,0.09364218,58922.0,58921.0,0.500855]
[1724996299293,0.09364218,58922.0,58921.0,0.51465003]
[1724996299597,0.1236,58941.0,58921.0,0.51465003]
[1724996299598,0.21839316,58946.0,58931.0,0.08484]
[1724996299896,0.084811,58952.0,58931.0,1.245]
[1724996299897,0.04154875,58932.0,58931.0,1.245]
[1724996300102,0.04154875,58932.0,58931.0,1.75408]
[1724996300298,0.04154875,58932.0,58931.0,1.245]
[1724996300602,0.004,58942.0,58941.0,0.084826]
[1724996300797,0.05206851,58942.0,58941.0,0.7216]
[1724996301188,0.05206851,58951.0,58948.0,0.084816]
[1724996301401,0.05206851,58950.0,58949.0,0.50932]
[1724996302099,0.1279,58958.0,58949.0,0.50932]
[1724996302290,0.05206078,58957.0,58949.0,0.50932]
[1724996302496,0.16796926,58952.0,58949.0,0.50932]
[1724996302697,0.16796926,58953.0,58949.0,0.3608]
[1724996302900,0.16796926,58953.0,58948.0,0.01440583]
[1724996302901,0.16796926,58950.0,58948.0,0.001]
[1724996303093,0.16796926,58949.0,58948.0,0.001]
[1724996303299,0.48066797,58949.0,58948.0,0.14952]
[1724996303494,0.53263079,58949.0,58948.0,0.14952]
[1724996303691,0.53263079,58949.0,58948.0,0.001]
[1724996303898,0.36475949,58949.0,58948.0,0.001]
[1724996304104,0.48048737,58949.0,58944.0,0.00025462]
[1724996304306,0.05206724,58948.0,58945.0,0.14836]
[1724996304603,0.18304755,58947.0,58944.0,0.00025462]
[1724996304904,0.15100313,58946.0,58945.0,0.14836]
[1724996305201,0.15100313,58946.0,58944.0,0.00025462]
[1724996305202,0.24104284,58946.0,58944.0,0.14861462]
[1724996305413,0.124,58945.0,58944.0,0.14861462]
[1724996305593,0.17606724,58945.0,58944.0,0.14861462]
[1724996305796,0.3726391,58945.0,58944.0,0.14861462]
[1724996306006,0.3726391,58945.0,58944.0,0.14961462]
[1724996306602,0.7334391,58945.0,58944.0,0.00125462]
[1724996306801,1.8423991,58945.0,58944.0,0.00125462]
[1724996307103,2.08769592,58945.0,58944.0,0.00125462]
[1724996307307,0.7334391,58945.0,58944.0,0.00225462]
[1724996307499,0.7334391,58945.0,58944.0,0.08707662]
[1724996307701,0.90112345,58945.0,58944.0,0.08707662]
[1724996307903,0.7334391,58945.0,58944.0,0.08707662]
[1724996308208,0.90111156,58945.0,58944.0,0.08707662]
[1724996308594,0.58185319,58945.0,58944.0,0.08707662]
[1724996308902,0.29018073,58945.0,58944.0,0.08707662]
[1724996309099,0.29018209,58945.0,58944.0,0.08707662]
[1724996309302,0.23811304,58945.0,58944.0,0.08707662]
[1724996309505,0.35102598,58945.0,58944.0,0.001]
[1724996309900,0.29018209,58945.0,58944.0,0.001]
[1724996310908,0.29018209,58945.0,58944.0,0.085822]
[1724996312408,0.09361023,58945.0,58944.0,0.09962753]
[1724996313696,0.00025388,58950.0,58946.0,0.084817]
[1724996313906,0.0935982,58949.0,58944.0,0.01480553]
[1724996314102,0.00025388,58950.0,58948.0,0.3608]
[1724996314303,0.00025388,58950.0,58949.0,0.084814]
[1724996314507,0.09385198,58950.0,58949.0,0.084814]
[1724996315398,0.09385198,58950.0,58949.0,0.593734]
[1724996315610,0.09385198,58950.0,58949.0,0.594734]
[1724996315806,0.09385198,58950.0,58949.0,0.884734]
[1724996316219,0.09385198,58950.0,58949.0,0.375814]
[1724996316414,0.09385198,58950.0,58949.0,0.234134]
[1724996316712,0.09385198,58950.0,58949.0,0.525134]
[1724996317106,0.09385198,58950.0,58949.0,0.524134]
[1724996317411,0.04178968,58950.0,58949.0,0.525134]
[1724996318105,0.04178968,58950.0,58949.0,0.524134]
[1724996318304,0.19276399,58950.0,58949.0,1.034054]
[1724996318903,0.04178968,58950.0,58949.0,1.034054]
[1724996319105,0.19276399,58950.0,58949.0,1.034054]
[1724996319518,0.19276399,58950.0,58949.0,1.163354]
[1724996319917,0.04178968,58950.0,58949.0,1.163354]
[1724996320914,0.04178968,58950.0,58949.0,0.873354]
[1724996321121,0.04178968,58950.0,58949.0,0.235134]
[1724996321414,0.04178968,58950.0,58949.0,0.525134]
[1724996321611,0.04178968,58950.0,58949.0,1.034054]
[1724996322211,0.04178968,58950.0,58949.0,0.525134]
[1724996322607,0.04178968,58950.0,58949.0,0.376814]
[1724996322811,0.04178968,58950.0,58949.0,0.44028]
[1724996323212,0.04178772,58950.0,58949.0,0.44028]
[1724996323619,0.04178772,58950.0,58949.0,0.525094]
[1724996323816,0.20951868,58950.0,58949.0,0.525094]
[1724996324218,0.04178772,58950.0,58949.0,1.034014]
[1724996324518,0.00025388,58950.0,58949.0,1.034014]
[1724996324715,0.04178772,58950.0,58949.0,1.034014]
[1724996324909,0.04178772,58950.0,58949.0,1.394814]
[1724996325915,0.15164083,58950.0,58949.0,1.394814]
[1724996326217,0.04178772,58950.0,58949.0,0.885894]
[1724996327816,0.0417849,58950.0,58949.0,0.885894]
[1724996328622,0.0417849,58950.0,58949.0,0.737614]
[1724996328822,0.0417849,58950.0,58949.0,0.885894]
[1724996330130,0.04178755,58950.0,58949.0,0.885894]
[1724996332327,0.22629161,58950.0,58949.0,0.885894]
[1724996332516,0.04178755,58950.0,58949.0,0.885894]
[1724996332724,0.04178599,58950.0,58949.0,0.885894]
[1724996339028,0.04178599,58950.0,58949.0,0.80108]
[1724996339535,0.04178599,58950.0,58949.0,0.80096]
[1724996339729,0.04178599,58950.0,58949.0,0.51096]
[1724996339920,0.04178599,58950.0,58949.0,0.3628]
[1724996340126,0.04178599,58950.0,58949.0,0.51096]
[1724996341129,0.04178945,58950.0,58949.0,0.51096]
[1724996341336,0.04178945,58950.0,58949.0,0.80096]
[1724996342429,0.04178945,58950.0,58949.0,0.44016]
[1724996342625,0.04178945,58950.0,58949.0,0.80096]
[1724996342827,0.18352223,58951.0,58949.0,0.80096]
[1724996343934,0.084791,58965.0,58953.0,0.084808]
[1724996343935,0.328091,58965.0,58953.0,0.084808]
[1724996344133,0.05205685,58964.0,58957.0,0.3608]
[1724996344331,0.05205685,58963.0,58957.0,0.3608]
[1724996344631,0.23840175,58962.0,58957.0,0.3608]
[1724996344939,0.05205685,58961.0,58957.0,0.3608]
[1724996345127,0.05205685,58960.0,58957.0,0.3608]
[1724996345341,0.05205685,58959.0,58957.0,0.3608]
[1724996345631,0.17703401,58959.0,58957.0,0.3608]
[1724996345839,0.05205721,58959.0,58957.0,0.3618]
[1724996346139,0.17770462,58959.0,58957.0,0.3618]
[1724996346436,0.22976183,58962.0,58957.0,0.3618]
[1724996346634,0.05205721,58961.0,58957.0,0.3628]
[1724996346827,0.17770462,58958.0,58957.0,0.3628]
[1724996347032,0.05205721,58959.0,58957.0,0.3628]
[1724996347340,0.19354131,58958.0,58957.0,0.3608]
[1724996347535,0.24559852,58958.0,58957.0,0.002]
[1724996348529,0.24559852,58958.0,58957.0,0.01594085]
[1724996348729,0.24559852,58958.0,58957.0,0.002]
[1724996349933,0.30644241,58958.0,58957.0,0.002]
[1724996350133,0.24559852,58958.0,58957.0,0.002]
[1724996350523,0.24560051,58958.0,58957.0,0.002]
[1724996350732,0.24560051,58958.0,58957.0,0.3628]
[1724996351036,0.28713352,58958.0,58957.0,0.3628]
[1724996351230,0.28713352,58958.0,58957.0,0.002]
[1724996351433,0.34797741,58958.0,58957.0,0.002]
[1724996352025,1.39597352,58958.0,58957.0,0.002]
[1724996352226,1.54161841,58958.0,58957.0,0.002]
[1724996352435,1.58885151,58958.0,58957.0,0.002]
[1724996352834,0.084804,58956.0,58955.0,0.00025441]
[1724996353036,0.1544361,58956.0,58947.0,0.46946]
[1724996353338,0.3608,58948.0,58947.0,0.46946]
[1724996353545,0.45439221,58948.0,58947.0,0.16204173]
[1724996353840,1.15861357,58948.0,58947.0,0.16204173]
[1724996354029,1.15861357,58948.0,58947.0,0.14816]
[1724996354336,1.15861357,58948.0,58942.0,0.23327841]
[1724996354337,1.20584667,58948.0,58942.0,0.23327841]
[1724996354541,0.3608,58943.0,58942.0,0.24681987]
[1724996354842,0.64742923,58943.0,58942.0,0.24681987]
[1724996355045,0.64642923,58943.0,58942.0,0.24681987]
[1724996355240,0.64545503,58943.0,58942.0,0.24681987]
[1724996355432,0.64545503,58943.0,58942.0,0.16199587]
[1724996356238,0.28665503,58943.0,58942.0,0.16199587]
[1724996356434,0.40417975,58943.0,58942.0,0.16199587]
[1724996356735,0.28765503,58943.0,58942.0,0.16199587]
[1724996357243,0.45625313,58943.0,58942.0,0.16199587]
[1724996357541,0.40417975,58943.0,58942.0,0.16199587]
[1724996357743,0.23558165,58943.0,58942.0,0.16199587]
[1724996358044,0.23558165,58943.0,58942.0,0.16299587]
[1724996358245,0.40411255,58943.0,58942.0,0.16399587]
[1724996358436,0.23658165,58943.0,58942.0,0.16399587]
[1724996358636,0.04254463,58943.0,58942.0,0.81379587]
[1724996358843,0.04354463,58943.0,58942.0,0.81479587]
[1724996359841,0.04354125,58943.0,58942.0,0.81479587]
[1724996361642,0.04354125,58943.0,58942.0,0.81279587]
[1724996362347,0.04354228,58943.0,58942.0,0.81279587]
[1724996362747,0.04254228,58943.0,58942.0,0.81279587]
[1724996362950,0.04354228,58943.0,58942.0,0.81279587]
[1724996365050,0.04254228,58943.0,58942.0,0.81279587]
[1724996365243,0.04354228,58943.0,58942.0,0.81279587]
[1724996365945,0.04254228,58943.0,58942.0,0.81279587]
[1724996366149,0.04354228,58943.0,58942.0,0.81279587]
[1724996367152,0.04354228,58943.0,58942.0,0.45199587]
[1724996367962,0.04354228,58943.0,58942.0,0.28199587]
[1724996368861,0.04254228,58943.0,58942.0,0.28199587]
[1724996369064,0.04354228,58943.0,58942.0,0.28199587]
[1724996370066,0.2288794,58943.0,58942.0,0.28199587]
[1724996370269,0.04354228,58943.0,58942.0,0.28199587]
[1724996373558,0.09561264,58943.0,58942.0,0.28199587]
[1724996374158,0.09561107,58943.0,58942.0,0.28199587]
[1724996375667,0.09561107,58943.0,58942.0,0.36681987]
[1724996375859,0.18026927,58943.0,58942.0,0.36681987]
[1724996376056,0.05206952,58951.0,58945.0,0.084819]
[1724996376364,0.05206952,58950.0,58945.0,0.084819]
[1724996376559,0.05206952,58949.0,58945.0,0.084819]
[1724996376866,0.05206952,58948.0,58946.0,0.084818]
[1724996377059,0.05206952,58953.0,58946.0,0.084818]
[1724996377259,0.05206952,58952.0,58946.0,0.084818]
[1724996377461,0.12,58947.0,58945.0,0.001]
[1724996377662,0.12,58946.0,58945.0,0.14908]
[1724996377868,0.471785,58946.0,58945.0,0.14908]
[1724996378064,0.22067865,58946.0,58945.0,0.15008]
[1724996378264,0.16763788,58946.0,58945.0,0.14908]
[1724996378463,0.16763788,58946.0,58945.0,0.14808]
[1724996378664,0.16763788,58946.0,58945.0,0.14908]
[1724996379173,0.05206818,58949.0,58945.0,0.14908]
[1724996379363,0.05206818,58949.0,58947.0,0.12]
[1724996379563,0.18673142,58948.0,58947.0,0.12]
[1724996381169,0.18773142,58948.0,58947.0,0.121]
[1724996382272,0.18773142,58948.0,58947.0,0.122]
[1724996382663,0.18773142,58948.0,58947.0,0.002]
[1724996383173,0.2397996,58948.0,58947.0,0.002]
[1724996383868,0.18773142,58948.0,58947.0,0.002]
[1724996384068,0.41498895,58948.0,58947.0,0.002]
[1724996384375,0.28133982,58948.0,58947.0,0.002]
[1724996388372,0.0946084,58948.0,58947.0,0.002]
[1724996388770,0.09460101,58948.0,58947.0,0.002]
[1724996391875,0.09460101,58948.0,58947.0,0.3628]
[1724996392583,0.23450055,58948.0,58947.0,0.3628]
[1724996392875,0.28656447,58948.0,58947.0,0.3628]
[1724996395583,0.41066447,58948.0,58947.0,0.3628]
[1724996396483,0.41066447,58948.0,58947.0,0.447617]
[1724996396484,0.28656447,58948.0,58947.0,0.447617]
[1724996396781,0.23450055,58948.0,58947.0,0.447617]
[1724996398082,0.04253709,58948.0,58947.0,0.447617]
[1724996398589,0.04253652,58948.0,58947.0,0.447617]
[1724996399783,0.09459973,58948.0,58947.0,0.447617]
[1724996400178,0.09459973,58948.0,58947.0,0.086817]
[1724996400477,0.09459973,58948.0,58947.0,0.447617]
[1724996401976,0.084808,58954.0,58947.0,0.447617]
[1724996402180,0.09359941,58953.0,58947.0,0.447617]
[1724996402387,0.09359941,58952.0,58951.0,0.12]
[1724996404096,0.09459941,58952.0,58951.0,0.121]
[1724996404872,0.09459941,58952.0,58951.0,0.205811]
[1724996405781,0.09459941,58952.0,58951.0,0.206811]
[1724996406979,0.09459903,58952.0,58951.0,0.206811]
[1724996407182,0.15503833,58957.0,58951.0,0.206811]
[1724996407385,0.09359855,58956.0,58951.0,0.206811]
[1724996407587,0.09359855,58955.0,58951.0,0.206811]
[1724996407774,0.18572918,58955.0,58951.0,0.206811]
[1724996407978,0.1786224,58954.0,58951.0,0.22032469]
[1724996408173,0.23068495,58954.0,58951.0,0.22032469]
[1724996408383,0.05206255,58953.0,58951.0,0.22032469]
[1724996408784,0.19573455,58952.0,58951.0,0.22032469]
[1724996409082,0.16884416,58952.0,58951.0,0.22032469]
[1724996409280,0.16884498,58952.0,58951.0,0.22032469]
[1724996409686,0.16884498,58952.0,58951.0,0.21932469]
[1724996409887,0.12,58952.0,58951.0,0.01551369]
[1724996410088,0.47414568,58952.0,58951.0,0.16343369]
[1724996410286,0.35736325,58952.0,58951.0,0.16343369]
[1724996410489,0.35736325,58952.0,58951.0,0.16243369]
[1724996410683,0.35736325,58952.0,58951.0,0.16343369]
[1724996410880,0.95105325,58952.0,58951.0,0.002]
[1724996411081,1.13678243,58952.0,58951.0,0.002]
[1724996411791,1.13678594,58952.0,58951.0,0.002]
[1724996412486,0.44217676,58952.0,58951.0,0.002]
[1724996412682,0.95105676,58952.0,58951.0,0.002]
[1724996413591,0.2853687,58952.0,58951.0,0.122]
[1724996413791,0.23736676,58952.0,58951.0,0.122]
[1724996413978,0.1853007,58952.0,58951.0,0.122]
[1724996414889,0.1853007,58952.0,58951.0,0.206811]
[1724996415588,0.37108208,58952.0,58951.0,0.206811]
[1724996416087,0.37108172,58952.0,58951.0,0.206811]
[1724996416284,0.23736676,58952.0,58951.0,0.206811]
[1724996416484,0.1853007,58952.0,58951.0,0.206811]
[1724996417090,0.3053007,58952.0,58951.0,0.002]
[1724996417278,0.17206606,58952.0,58951.0,0.002]
[1724996417484,0.31678557,58952.0,58951.0,0.002]
[1724996417793,0.87773163,58952.0,58951.0,0.002]
[1724996418100,1.01054357,58952.0,58951.0,0.002]
[1724996418484,0.38166357,58952.0,58951.0,0.002]
[1724996418681,0.29685357,58952.0,58951.0,0.122]
[1724996419398,0.24885163,58952.0,58951.0,0.122]
[1724996419786,0.24885163,58952.0,58951.0,0.002]
[1724996420199,0.19678557,58952.0,58951.0,0.002]
[1724996420987,0.19262168,58953.0,58951.0,0.002]
[1724996421593,0.19262168,58953.0,58951.0,0.122]
[1724996422795,0.11290987,58952.0,58951.0,0.122]
[1724996423099,0.29273512,58952.0,58951.0,0.122]
[1724996423986,0.29273512,58952.0,58951.0,0.121]
[1724996424195,0.29273512,58952.0,58951.0,0.122]
[1724996424401,0.24066906,58952.0,58951.0,0.122]
[1724996424698,0.2927321,58952.0,58951.0,0.122]
[1724996424896,0.24066906,58952.0,58951.0,0.122]
[1724996425702,0.24066906,58952.0,58951.0,0.002]
[1724996425892,0.36066906,58952.0,58951.0,0.002]
[1724996431494,0.24066906,58952.0,58951.0,0.002]
[1724996434500,0.17982525,58952.0,58951.0,0.002]
[1724996434708,0.23189007,58952.0,58951.0,0.002]
[1724996435401,0.17982525,58952.0,58951.0,0.002]
[1724996436406,0.17982525,58952.0,58951.0,0.086811]
[1724996436702,0.084802,58958.0,58951.0,0.086811]
[1724996437002,0.18046075,58957.0,58953.0,0.3608]
[1724996437203,0.26526375,58957.0,58953.0,0.3608]
[1724996437607,0.26526375,58957.0,58954.0,0.12]
[1724996438805,0.05206208,58956.0,58954.0,0.12]
[1724996438992,0.05206208,58956.0,58954.0,0.121]
[1724996439202,0.19149498,58955.0,58954.0,0.122]
[1724996439808,0.19149498,58955.0,58954.0,0.121]
[1724996440010,0.19149498,58955.0,58954.0,0.122]
[1724996441409,0.19149498,58955.0,58954.0,0.121]
[1724996443008,0.19149498,58955.0,58954.0,0.12]
[1724996443706,0.30439119,58955.0,58954.0,0.12]
[1724996444014,0.05206208,58955.0,58954.0,0.12]
[1724996444201,0.11289621,58955.0,58954.0,0.12]
[1724996444401,0.28996744,58955.0,58954.0,0.12]
[1724996444909,0.22913331,58955.0,58952.0,0.3608]
[1724996445207,0.12,58953.0,58952.0,0.3608]
[1724996445413,0.4808,58953.0,58943.0,0.1294]
[1724996445614,0.12,58947.0,58943.0,0.1334]
[1724996445907,0.12,58944.0,58943.0,0.1294]
[1724996446616,0.05206208,58945.0,58943.0,0.14278769]
[1724996446813,0.084819,58946.0,58943.0,0.14278769]
[1724996447115,0.19575962,58945.0,58943.0,0.14478769]
[1724996447312,0.05206208,58945.0,58943.0,0.14478769]
[1724996447509,0.084819,58946.0,58943.0,0.14478769]
[1724996447714,0.084819,58946.0,58943.0,0.14678769]
[1724996447913,0.18699616,58945.0,58943.0,0.14678769]
[1724996448113,0.23906439,58945.0,58943.0,0.14678769]
[1724996448419,0.05875947,58945.0,58943.0,0.14678769]
[1724996448616,0.001,58944.0,58943.0,0.14278769]
[1724996448816,0.001,58944.0,58943.0,0.26278769]
[1724996449206,0.00869124,58945.0,58943.0,0.26278769]
[1724996449914,0.002,58944.0,58943.0,0.26278769]
[1724996450517,0.06075864,58945.0,58943.0,0.26278769]
[1724996451317,0.06075864,58945.0,58943.0,0.62358769]
[1724996451913,0.00669124,58945.0,58943.0,0.62358769]
[1724996452115,0.001,58944.0,58943.0,0.62358769]
[1724996452511,0.18582454,58944.0,58943.0,0.62358769]
[1724996452916,0.0520674,58944.0,58943.0,0.49418769]
[1724996453113,0.084822,58944.0,58943.0,0.49418769]
[1724996453315,0.1378894,58944.0,58943.0,0.49418769]
[1724996453811,0.1378894,58944.0,58943.0,0.13338769]
[1724996454212,0.2578894,58944.0,58943.0,0.01338769]
[1724996454414,0.2578894,58944.0,58942.0,0.14801441]
[1724996454614,0.0520674,58943.0,58942.0,0.14801441]
[1724996454820,0.1368904,58943.0,58942.0,0.14801441]
[1724996455723,0.0520674,58943.0,58942.0,0.14801441]
[1724996456231,0.1368904,58943.0,58942.0,0.1615925]
[1724996456525,0.38467109,58943.0,58942.0,0.00025441]
[1724996458731,1.49363109,58943.0,58942.0,0.00025441]
[1724996458929,1.55026054,58943.0,58942.0,0.00025441]
[1724996459624,1.76951878,58943.0,58942.0,0.00025441]
[1724996460228,1.55026054,58943.0,58942.0,0.00025441]
[1724996460419,0.95026054,58943.0,58942.0,0.00025441]
[1724996460628,0.88942641,58943.0,58942.0,0.00025441]
[1724996461127,0.38046641,58943.0,58942.0,0.00025441]
[1724996461524,0.50046641,58943.0,58942.0,0.00025441]
[1724996461719,0.44384675,58943.0,58942.0,0.00025441]
[1724996462920,1.55280675,58943.0,58942.0,0.00025441]
[1724996463126,1.79917928,58943.0,58942.0,0.00025441]
[1724996463520,1.61365849,58943.0,58942.0,0.00025441]
[1724996464028,1.67042418,58943.0,58942.0,0.00025441]
[1724996464229,1.68388678,58943.0,58942.0,0.00025441]
[1724996466933,0.084836,58934.0,58915.0,0.3608]
[1724996467127,0.509,58942.0,58915.0,0.3608]
[1724996467128,0.16850722,58919.0,58917.0,0.44776]
[1724996467328,0.16850722,58923.0,58918.0,0.204858]
[1724996467522,0.16850722,58923.0,58922.0,0.12]
[1724996467830,0.19190306,58923.0,58922.0,0.12]
[1724996468131,0.22059156,58923.0,58920.0,0.3608]
[1724996468325,0.3288334,58927.0,58920.0,0.3608]
[1724996468527,0.1854044,58921.0,58920.0,0.3608]
[1724996469430,0.1854044,58922.0,58920.0,0.3608]
[1724996469829,0.1854044,58924.0,58920.0,0.3608]
[1724996470425,0.001,58921.0,58920.0,0.3738]
[1724996470731,0.001,58921.0,58920.0,0.3858]
[1724996471230,0.001,58921.0,58920.0,0.3738]
[1724996471431,0.001,58921.0,58920.0,0.3858]
[1724996472034,0.16819393,58921.0,58920.0,0.3848]
[1724996472234,0.2712554,58924.0,58920.0,0.3848]
[1724996472630,0.18502056,58923.0,58920.0,0.3848]
[1724996472831,0.2371074,58923.0,58920.0,0.3848]
[1724996473035,0.4225118,58923.0,58920.0,0.3848]
[1724996473235,0.05208684,58922.0,58920.0,0.3848]
[1724996473435,0.2371074,58923.0,58920.0,0.3848]